bitfinex-derivatives/quotes_SOLF0:USTF0_20251202
["timestamp","ask_amount","ask_price","bid_price","bid_amount"]
[1764640261149,3.4108961,126.8,126.78,0.05225642]
[1764640261653,0.0508961,126.8,126.78,2.81225642]
[1764640261851,0.0508961,126.8,126.79,2.76]
[1764640263154,3.36,126.85,126.81,2.76]
[1764640264154,0.05023878,126.84,126.82,0.06059703]
[1764640264753,3.41023878,126.84,126.82,0.06059703]
[1764640264954,0.05023878,126.84,126.82,0.06059703]
[1764640266052,3.41023878,126.84,126.82,0.06059703]
[1764640269159,3.05676921,126.83,126.82,9.91689703]
[1764640269358,117.63137516,126.89,126.82,9.91689703]
[1764640269359,7.29547516,126.9,126.83,2.76]
[1764640269662,3.05808103,126.89,126.85,2.76]
[1764640269854,3.31,126.9,126.85,2.76]
[1764640270056,6.36490777,126.89,126.85,2.76]
[1764640270256,3.31,126.89,126.86,7.0941]
[1764640270553,3.36227156,126.89,126.86,0.05360015]
[1764640270854,3.31,126.87,126.86,0.05360015]
[1764640275364,0.05227156,126.89,126.86,2.81360015]
[1764640276349,0.05227156,126.89,126.87,7.0933]
[1764640276557,0.05227156,126.89,126.87,9.8533]
[1764640278662,3.36227156,126.89,126.86,2.81360015]
[1764640279266,3.36227156,126.89,126.86,9.90760015]
[1764640279467,3.31,126.94,126.88,113.093]
[1764640279669,3.31,126.92,126.89,2.09767713]
[1764640279871,3.31,126.92,126.89,2.76]
[1764640280563,3.36973961,126.92,126.89,2.819578]
[1764640280770,3.36973961,126.92,126.89,9.911878]
[1764640280957,0.05973961,126.92,126.9,2.76]
[1764640281160,0.05973961,126.92,126.9,9.8517]
[1764640281362,0.05973961,126.92,126.91,2.76]
[1764640283466,3.31,126.95,126.92,9.8507]
[1764640284471,3.36816551,126.95,126.92,9.90895181]
[1764640284770,3.36816551,126.95,126.92,7.14895181]
[1764640286671,3.31,126.94,126.92,0.05825181]
[1764640287368,3.31,126.94,126.92,2.81825181]
[1764640287579,0.05816551,126.95,126.92,2.81825181]
[1764640287874,3.36816551,126.95,126.92,2.81825181]
[1764640288577,0.05816551,126.95,126.93,9.85]
[1764640289566,3.36816551,126.95,126.92,0.05825181]
[1764640289876,5.46584264,126.95,126.92,0.05825181]
[1764640290071,3.31,126.94,126.92,0.05825181]
[1764640292871,10.3999,126.94,126.92,0.05825181]
[1764640293072,3.11,126.93,126.92,0.05825181]
[1764640300578,3.08,126.92,126.87,9.8535]
[1764640301584,0.05635467,126.91,126.88,2.8140263]
[1764640301785,3.13635467,126.91,126.88,2.8140263]
[1764640302082,3.13635467,126.91,126.88,9.9070263]
[1764640303577,3.13635467,126.91,126.89,2.76]
[1764640303881,3.13635467,126.91,126.88,9.9070263]
[1764640305179,3.13635467,126.91,126.88,7.1470263]
[1764640305385,3.13635467,126.91,126.88,0.0540263]
[1764640307890,3.13635467,126.91,126.88,2.8140263]
[1764640308395,3.13635467,126.91,126.88,0.0540263]
[1764640308991,3.13635467,126.91,126.88,2.8140263]
[1764640314194,10.22795467,126.91,126.88,0.0540263]
[1764640314406,3.08,126.89,126.88,0.0540263]
[1764640315904,3.08,126.9,126.88,0.0540263]
[1764640316608,3.08,126.88,126.83,2.76]
[1764640316807,3.08,126.88,126.8,110.4031]
[1764640316808,3.08,126.86,126.81,2.76]
[1764640317706,3.13131909,126.85,126.82,2.81361618]
[1764640318404,3.13131909,126.85,126.82,9.90951618]
[1764640318607,3.13131909,126.85,126.82,0.05361618]
[1764640318804,3.13131909,126.85,126.82,2.81361618]
[1764640320609,3.13131909,126.85,126.82,0.05361618]
[1764640320804,0.05131909,126.85,126.83,2.76]
[1764640320999,3.13131909,126.85,126.83,2.76]
[1764640321701,3.13131909,126.85,126.83,9.8558]
[1764640322206,0.05131909,126.85,126.84,2.76]
[1764640322403,0.05131909,126.85,126.83,9.8558]
[1764640322809,3.13131909,126.85,126.83,7.0958]
[1764640323005,3.13131909,126.85,126.82,0.05361618]
[1764640324614,0.05131909,126.85,126.83,2.76]
[1764640324813,3.13131909,126.85,126.83,2.76]
[1764640325309,3.13131909,126.85,126.83,9.8557]
[1764640325515,3.13131909,126.85,126.83,7.0957]
[1764640326622,3.13131909,126.85,126.82,0.05361618]
[1764640327120,3.13131909,126.85,126.82,2.81361618]
[1764640330725,3.13131909,126.85,126.82,9.90991618]
[1764640330925,0.05131909,126.85,126.83,2.76]
[1764640331226,3.14131909,126.85,126.83,2.76]
[1764640331825,0.05131909,126.85,126.83,9.8555]
[1764640332025,84.30054002,126.91,126.85,2.76]
[1764640332026,3.09,126.89,126.85,2.76]
[1764640332230,9.17521411,126.88,126.85,2.76]
[1764640332423,3.09,126.89,126.86,7.0937]
[1764640332626,9.16159297,126.88,126.86,7.0937]
[1764640332823,3.09,126.89,126.86,7.0937]
[1764640333020,12.25600472,126.88,126.86,7.15041971]
[1764640333225,3.09,126.88,126.86,7.15041971]
[1764640333531,12.26290869,126.87,126.86,0.05671971]
[1764640335528,9.17290869,126.87,126.86,0.05671971]
[1764640338635,12.26290869,126.87,126.86,0.05671971]
[1764640339131,3.09,126.87,126.86,0.05671971]
[1764640339838,3.14871151,126.89,126.86,9.91081971]
[1764640340029,3.14871151,126.89,126.86,7.15081971]
[1764640341929,3.14871151,126.89,126.86,0.05671971]
[1764640343542,3.14871151,126.89,126.86,9.91071971]
[1764640343740,3.14871151,126.89,126.86,0.05671971]
[1764640344437,3.14871151,126.89,126.86,2.81671971]
[1764640344642,3.14871151,126.89,126.86,0.05671971]
[1764640345238,12.28622911,126.88,126.86,0.05671971]
[1764640345439,3.09,126.88,126.86,0.05671971]
[1764640352442,12.34380787,126.87,126.86,0.05671971]
[1764640366157,3.07,126.86,126.83,7.0955]
[1764640366365,3.07,126.86,126.81,177.9151]
[1764640366366,3.07,126.84,126.81,7.0966]
[1764640366661,3.07,126.84,126.81,9.9166]
[1764640367060,3.12073875,126.84,126.81,9.9739266]
[1764640368061,3.12073875,126.84,126.81,7.1539266]
[1764640369462,3.07,126.82,126.81,7.1539266]
[1764640369857,3.12073875,126.84,126.82,2.82]
[1764640370065,0.05073875,126.84,126.82,9.9159]
[1764640370252,0.05073875,126.84,126.83,2.82]
[1764640371057,10.28109597,126.88,126.84,7.095]
[1764640371263,9.2506748,126.87,126.85,2.82]
[1764640371463,3.08063914,126.86,126.85,2.82]
[1764640372366,3.08063914,126.86,126.85,9.9143]
[1764640377567,3.08063914,126.86,126.85,2.82]
[1764640379570,0.06058923,126.87,126.85,2.82]
[1764640380470,0.06058923,126.87,126.86,9.9142]
[1764640380670,9.3432028,126.87,126.86,9.9142]
[1764640380869,12.4132028,126.87,126.86,7.0942]
[1764640383968,9.3432028,126.87,126.86,9.9142]
[1764640385974,3.15356027,126.87,126.86,9.9142]
[1764640386473,9.34763652,126.87,126.86,9.9142]
[1764640387274,10.28109597,126.92,126.89,2.82]
[1764640387474,3.07,126.9,126.87,2.82]
[1764640387673,3.07,126.88,126.86,2.82]
[1764640388371,3.13044856,126.88,126.86,2.87595783]
[1764640389174,0.06044856,126.88,126.86,2.87595783]
[1764640389378,0.06044856,126.88,126.87,7.0935]
[1764640389571,6.23221907,126.88,126.87,7.0935]
[1764640390875,6.23221907,126.88,126.87,9.9135]
[1764640392472,0.06044856,126.88,126.87,9.9135]
[1764640394379,3.32,126.95,126.92,2.76]
[1764640394577,6.14918828,126.94,126.92,70.26]
[1764640394783,3.32,126.96,126.93,2.76]
[1764640394980,9.46975427,126.95,126.93,2.76]
[1764640395167,6.14975427,126.94,126.93,2.76]
[1764640396266,3.37490411,126.95,126.93,9.8501]
[1764640397576,0.05490411,126.95,126.94,2.76]
[1764640398285,3.32,127.02,126.98,2.7]
[1764640399073,3.32,127.02,126.98,9.7873]
[1764640399268,0.05285346,127.01,126.99,2.74971129]
[1764640399983,3.37285346,127.01,126.99,2.74971129]
[1764640405675,3.37285346,127.01,126.99,0.04971129]
[1764640413103,3.37285346,127.01,126.98,7.0873]
[1764640413104,3.32,127.0,126.94,2.7]
[1764640413294,3.32,127.0,126.95,2.75]
[1764640413496,3.32,127.0,126.96,2.75]
[1764640413894,3.32,127.0,126.96,9.8384]
[1764640414100,3.32,126.98,126.97,0.0528438]
[1764640414299,0.05528626,126.99,126.97,11.98472295]
[1764640414506,0.05528626,126.99,126.98,2.75]
[1764640419014,3.34528626,126.99,126.97,7.1407438]
[1764640419210,3.34528626,126.99,126.97,74.5807438]
[1764640419413,3.34528626,126.99,126.97,67.4928438]
[1764640421314,3.34528626,126.99,126.97,74.5806438]
[1764640425018,3.34528626,126.99,126.97,77.3306438]
[1764640428119,3.34528626,126.99,126.97,74.5806438]
[1764640428321,3.34528626,126.99,126.97,7.1406438]
[1764640428516,3.34528626,126.99,126.97,0.0528438]
[1764640429224,3.29,126.98,126.97,0.0528438]
[1764640430223,6.27319564,126.98,126.97,0.0528438]
[1764640437217,12.26994631,126.98,126.97,0.0528438]
[1764640438224,9.28675067,126.98,126.97,0.0528438]
[1764640439128,12.28961957,126.98,126.97,0.0528438]
[1764640439328,9.28675067,126.98,126.97,0.0528438]
[1764640439524,12.29239077,126.98,126.97,0.0528438]
[1764640440622,9.00239077,126.98,126.97,2.8028438]
[1764640440827,3.0056401,126.98,126.97,2.8028438]
[1764640441030,3.34528626,126.99,126.97,2.8028438]
[1764640441624,0.05528626,126.99,126.97,4.89682295]
[1764640441821,3.34528626,126.99,126.97,9.8906438]
[1764640442026,12.29285349,126.98,126.97,0.0528438]
[1764640442224,3.00991922,126.98,126.97,2.8028438]
[1764640442424,3.00991922,126.98,126.97,0.0528438]
[1764640444527,0.05528626,126.99,126.97,2.8028438]
[1764640444725,0.05528626,126.99,126.98,2.75]
[1764640452529,0.05528626,126.99,126.98,4.84397915]
[1764640452736,3.35,127.04,127.02,9.7852]
[1764640452927,9.01174571,127.03,127.02,7.0852]
[1764640454042,3.01796004,127.03,127.02,7.0852]
[1764640454926,9.0074255,127.03,127.02,7.0852]
[1764640455132,3.01796004,127.03,127.02,7.0852]
[1764640455539,3.01428492,127.03,127.02,7.0852]
[1764640456939,3.40689121,127.04,127.02,7.0852]
[1764640456940,0.05689121,127.04,127.03,2.7]
[1764640457137,6.42142074,127.04,127.02,9.7852]
[1764640457335,3.40689121,127.04,127.02,9.7852]
[1764640457839,0.05689121,127.04,127.03,2.7]
[1764640458140,3.07085565,127.04,127.03,2.7]
[1764640458539,0.05689121,127.04,127.03,2.7]
[1764640459339,6.4202252,127.04,127.01,4.85078749]
[1764640459542,6.36333399,127.03,127.01,2.75680834]
[1764640459748,3.35,127.03,127.01,2.75680834]
[1764640466141,0.05689121,127.04,127.02,2.7]
[1764640466642,3.40689121,127.04,127.02,2.7]
[1764640467343,3.40689121,127.04,127.02,9.7849]
[1764640470550,0.05689121,127.04,127.02,9.7849]
[1764640472153,0.05689121,127.04,127.03,2.7]
[1764640477849,3.36689121,127.04,127.01,0.05680834]
[1764640478053,3.31,127.02,127.01,0.05680834]
[1764640481455,12.25039222,127.02,127.01,0.05680834]
[1764640489273,12.25039222,127.02,126.95,7.0887]
[1764640489465,3.1,127.0,126.95,9.8387]
[1764640489670,3.1,126.98,126.95,9.8387]
[1764640490272,3.01233054,126.97,126.95,9.8387]
[1764640490473,3.15010116,126.98,126.95,9.8936768]
[1764640490680,6.11173202,126.97,126.95,9.8936768]
[1764640490980,3.1,126.97,126.95,9.8936768]
[1764640491576,3.15010116,126.98,126.96,2.75]
[1764640492685,3.01017323,126.97,126.96,2.75]
[1764640493084,3.15010116,126.98,126.96,2.75]
[1764640493785,0.05010116,126.98,126.97,2.75]
[1764640499278,0.05010116,126.98,126.96,7.0884]
[1764640499486,3.15010116,126.98,126.96,9.8384]
[1764640499787,0.05010116,126.98,126.97,2.75]
[1764640501190,3.15010116,126.98,126.96,9.8384]
[1764640501787,0.05010116,126.98,126.97,2.75]
[1764640501983,3.15010116,126.98,126.96,9.8384]
[1764640502185,3.15010116,126.98,126.96,7.0884]
[1764640502385,3.15010116,126.98,126.96,9.8384]
[1764640507387,3.15010116,126.98,126.95,0.0549768]
[1764640507982,10.08503638,126.97,126.95,0.0549768]
[1764640508294,3.1,126.95,126.9,23.69501701]
[1764640508495,3.4,126.93,126.9,23.69501701]
[1764640508694,3.4,126.93,126.9,2.75]
[1764640509285,3.45160759,126.93,126.9,2.80420253]
[1764640509490,3.45160759,126.93,126.9,9.89600253]
[1764640510187,3.45160759,126.93,126.9,2.80420253]
[1764640511987,3.45160759,126.93,126.9,0.05420253]
[1764640513886,3.45160759,126.93,126.9,2.80420253]
[1764640514488,0.05160759,126.93,126.9,2.80420253]
[1764640515291,0.05160759,126.93,126.91,7.0912]
[1764640515499,0.05160759,126.93,126.92,2.75]
[1764640515900,3.4,127.01,126.96,2.7]
[1764640516098,3.4,127.0,126.96,2.7]
[1764640516399,3.4,127.0,126.97,2.7]
[1764640516703,3.4,127.01,126.97,2.7]
[1764640516901,0.06032487,127.0,126.98,2.75547632]
[1764640517104,3.46032487,127.0,126.98,2.75547632]
[1764640518205,0.06032487,127.0,126.98,2.75547632]
[1764640519204,0.06032487,127.0,126.98,9.84277632]
[1764640519403,0.06032487,127.0,126.99,2.7]
[1764640525808,3.46032487,127.0,126.98,9.84277632]
[1764640526204,0.06032487,127.0,126.99,2.7]
[1764640530105,0.06032487,127.0,126.98,7.14277632]
[1764640530304,0.06032487,127.0,126.98,9.84277632]
[1764640531600,0.06032487,127.0,126.99,2.7]
[1764640538109,0.06032487,127.0,126.98,9.84277632]
[1764640538310,0.06032487,127.0,126.99,2.7]
[1764640549127,3.34032487,127.0,126.98,7.14277632]
[1764640549329,3.34032487,127.0,126.98,9.84277632]
[1764640550731,3.34032487,127.0,126.98,2.75547632]
[1764640551433,6.29950452,126.99,126.98,0.05547632]
[1764640552728,3.28,126.98,126.95,2.7]
[1764640553331,3.28,126.98,126.92,77.1704]
[1764640553634,3.28,126.98,126.93,2.7]
[1764640553835,3.33774016,126.97,126.94,2.75130631]
[1764640554035,2.09374952,126.96,126.94,0.05130631]
[1764640554236,3.28,126.95,126.94,0.05130631]
[1764640554430,3.33774016,126.97,126.94,2.75130631]
[1764640554826,3.33774016,126.97,126.94,0.05130631]
[1764640555233,3.28,126.95,126.94,0.05130631]
[1764640555430,6.30099433,126.95,126.94,0.05130631]
[1764640557641,3.28,126.95,126.94,0.05130631]
[1764640558038,3.28,126.95,126.91,2.7]
[1764640558943,3.33369831,126.94,126.92,0.05202927]
[1764640559444,5.42744783,126.94,126.92,0.05202927]
[1764640559634,6.30251383,126.93,126.92,0.05202927]
[1764640559833,3.28,126.92,126.88,2.7]
[1764640560034,3.28,126.91,126.86,2.7]
[1764640560838,3.33478775,126.9,126.87,2.76022077]
[1764640561244,0.05478775,126.9,126.87,2.76022077]
[1764640561840,0.05478775,126.9,126.87,9.85342077]
[1764640562040,3.33478775,126.9,126.87,7.15342077]
[1764640562240,3.33478775,126.9,126.87,2.76022077]
[1764640562447,0.05478775,126.9,126.87,2.76022077]
[1764640562742,3.33478775,126.9,126.87,2.76022077]
[1764640565842,3.33478775,126.9,126.87,0.06022077]
[1764640566146,3.28,126.88,126.84,2.7]
[1764640566842,3.28,126.88,126.82,9.796]
[1764640566843,3.28,126.87,126.82,9.796]
[1764640567040,0.06009529,126.86,126.83,4.85387787]
[1764640567241,0.06009529,126.86,126.84,2.7]
[1764640568438,0.06009529,126.86,126.85,4.79374952]
[1764640569647,10.171,126.92,126.86,2.7]
[1764640569854,10.171,126.92,126.88,2.7]
[1764640570350,3.08,126.91,126.88,2.7]
[1764640570550,3.13185626,126.91,126.88,2.75986275]
[1764640571151,0.05185626,126.91,126.88,2.75986275]
[1764640571751,0.05185626,126.91,126.89,2.7]
[1764640572449,0.05185626,126.91,126.9,2.7]
[1764640576745,5.17374952,126.97,126.92,2.7]
[1764640576949,3.08,126.95,126.92,2.7]
[1764640577157,3.08,126.95,126.91,11.88484952]
[1764640577344,3.08,126.95,126.91,2.7]
[1764640577751,0.05552619,126.94,126.92,2.7574669]
[1764640578250,3.13552619,126.94,126.92,2.7574669]
[1764640578752,3.13552619,126.94,126.92,0.0574669]
[1764640579251,3.08,126.92,126.87,67.42]
[1764640579445,3.08,126.92,126.87,70.12]
[1764640579650,3.08,126.92,126.88,2.7]
[1764640580050,3.13948682,126.91,126.89,0.05025458]
[1764640582756,0.05948682,126.91,126.89,2.75025458]
[1764640583358,3.13948682,126.91,126.89,2.75025458]
[1764640583954,0.05948682,126.91,126.89,2.75025458]
[1764640587359,0.05948682,126.91,126.9,2.7]
[1764640591060,0.05948682,126.91,126.89,9.84235458]
[1764640592568,3.12948682,126.91,126.89,0.05025458]
[1764640592762,3.12948682,126.91,126.89,2.75025458]
[1764640592958,3.12948682,126.91,126.89,0.05025458]
[1764640594264,3.08373903,126.9,126.89,0.05025458]
[1764640594462,6.15373903,126.9,126.89,0.05025458]
[1764640595058,6.15373903,126.9,126.85,2.7]
[1764640595059,3.07,126.89,126.85,2.7]
[1764640595266,3.07,126.87,126.85,2.7]
[1764640595566,3.08373903,126.86,126.85,2.7]
[1764640596162,3.08289227,126.86,126.85,2.7]
[1764640596474,0.05007185,126.87,126.85,2.7]
[1764640598161,3.08322868,126.86,126.85,2.7]
[1764640598568,3.08322868,126.86,126.84,2.75744761]
[1764640598768,3.08322868,126.85,126.84,2.75744761]
[1764640599170,3.26,126.85,126.84,0.05744761]
[1764640600773,3.31007185,126.87,126.84,0.05744761]
[1764640600976,6.34646028,126.86,126.84,0.05744761]
[1764640601180,3.26,126.86,126.84,0.05744761]
[1764640603076,3.26,126.86,126.84,2.75744761]
[1764640603577,3.31007185,126.87,126.84,2.75744761]
[1764640603877,3.08612024,126.86,126.84,2.75744761]
[1764640604075,0.05007185,126.87,126.84,2.75744761]
[1764640604772,3.31007185,126.87,126.84,2.75744761]
[1764640605271,0.05007185,126.87,126.86,2.7]
[1764640605977,3.31007185,126.87,126.85,9.7946]
[1764640606172,0.05007185,126.87,126.85,9.7946]
[1764640606377,3.31007185,126.87,126.84,0.05744761]
[1764640606679,3.31007185,126.87,126.84,2.75744761]
[1764640607677,3.31007185,126.87,126.85,2.7]
[1764640607870,0.05007185,126.87,126.85,2.7]
[1764640609378,0.05007185,126.87,126.86,7.0942]
[1764640609778,0.05007185,126.87,126.85,2.7]
[1764640610880,3.31007185,126.87,126.84,2.75744761]
[1764640611079,3.31007185,126.87,126.84,0.05744761]
[1764640611675,3.31007185,126.87,126.84,2.75744761]
[1764640612980,3.31007185,126.87,126.84,9.85264761]
[1764640615789,3.31007185,126.87,126.84,2.75744761]
[1764640620789,0.05007185,126.87,126.85,2.7]
[1764640621994,3.26,126.92,126.86,2.7]
[1764640622193,3.08404557,126.91,126.87,2.7]
[1764640622398,3.26,126.92,126.87,2.7]
[1764640623100,0.05654298,126.91,126.88,2.75385488]
[1764640623301,0.05654298,126.91,126.88,9.84685488]
[1764640623500,0.05654298,126.91,126.89,2.7]
[1764640626704,0.05654298,126.91,126.9,2.7]
[1764640632307,3.36,126.96,126.92,2.69]
[1764640632611,3.07783128,126.95,126.92,2.69]
[1764640632818,3.36,126.96,126.93,2.69]
[1764640633416,3.41240331,126.96,126.93,2.74226794]
[1764640634612,0.05240331,126.96,126.93,9.83226794]
[1764640634807,0.05240331,126.96,126.93,2.74226794]
[1764640635213,0.05240331,126.96,126.95,2.69]
[1764640635712,3.41240331,126.96,126.94,2.69]
[1764640636812,3.41240331,126.96,126.93,0.05226794]
[1764640637014,3.36,126.94,126.93,0.05226794]
[1764640637612,0.05240331,126.96,126.93,0.05226794]
[1764640637818,6.43642207,126.95,126.93,0.05226794]
[1764640638116,3.36,126.95,126.93,0.05226794]
[1764640640829,6.43437639,126.94,126.93,0.05226794]
[1764640641019,6.43437639,126.94,126.9,7.0918]
[1764640641321,3.36,126.93,126.88,7.093]
[1764640641522,3.36,126.93,126.89,2.69]
[1764640642228,3.41849299,126.92,126.9,0.05284633]
[1764640655130,6.39516268,126.91,126.9,0.05284633]
[1764640656242,3.38,126.91,126.9,0.05284633]
[1764640663247,6.40361087,126.91,126.9,0.05284633]
[1764640663638,12.31871512,126.91,126.9,0.05284633]
[1764640664036,6.40361087,126.91,126.9,0.05284633]
[1764640664241,12.32137978,126.91,126.9,0.05284633]
[1764640665348,3.02361087,126.91,126.9,2.75284633]
[1764640665648,3.42849299,126.92,126.9,2.75284633]
[1764640666235,3.02508894,126.91,126.9,2.75284633]
[1764640667346,3.42849299,126.92,126.9,2.75284633]
[1764640669052,6.39546225,126.91,126.9,0.05284633]
[1764640671655,12.30724801,126.91,126.9,0.05284633]
[1764640674947,3.37,126.9,126.86,2.7]
[1764640675146,16.02894801,126.91,126.86,2.7]
[1764640675147,3.37,126.88,126.86,2.7]
[1764640675946,3.42111346,126.88,126.86,2.75468062]
[1764640676660,3.42111346,126.88,126.86,0.05468062]
[1764640676854,6.39220027,126.87,126.86,0.05468062]
[1764640678353,3.02220027,126.87,126.86,2.75468062]
[1764640678550,0.05111346,126.88,126.86,4.85189026]
[1764640678753,0.05111346,126.88,126.87,2.7]
[1764640683858,3.42111346,126.88,126.86,9.84838062]
[1764640685170,3.03905531,126.87,126.86,9.84838062]
[1764640686365,3.03905531,126.87,126.86,0.05468062]
[1764640686665,12.33997292,126.87,126.86,0.05468062]
[1764640687369,6.40905531,126.87,126.86,0.05468062]
[1764640688460,3.03905531,126.87,126.86,0.05468062]
[1764640688667,6.20905531,126.87,126.86,0.05468062]
[1764640689374,12.13572733,126.87,126.86,0.05468062]
[1764640694861,6.20905531,126.87,126.86,0.05468062]
[1764640695066,3.03905531,126.87,126.86,0.05468062]
[1764640695266,6.20905531,126.87,126.86,0.05468062]
[1764640697477,0.05111346,126.88,126.86,2.75468062]
[1764640697981,3.22111346,126.88,126.86,2.75468062]
[1764640698573,3.22111346,126.88,126.86,0.05468062]
[1764640705683,6.20302997,126.87,126.86,0.05468062]
[1764640706182,3.17,126.87,126.86,0.05468062]
[1764640710783,6.20535038,126.87,126.86,0.05468062]
[1764640713681,12.13262157,126.87,126.86,0.05468062]
[1764640713882,3.17,126.87,126.86,0.05468062]
[1764640714082,6.20203166,126.87,126.86,0.05468062]
[1764640714281,12.13110807,126.87,126.86,0.05468062]
[1764640714887,6.20203166,126.87,126.86,0.05468062]
[1764640724800,12.13534462,126.87,126.86,0.05468062]
[1764640725401,6.20203166,126.87,126.86,0.05468062]
[1764640726506,3.28,126.91,126.87,2.7]
[1764640726706,10.3704,126.93,126.88,2.7]
[1764640726905,3.28,126.91,126.88,2.7]
[1764640727203,3.28,126.91,126.89,9.7925]
[1764640727406,3.28,126.91,126.9,2.7]
[1764640727606,6.31524466,126.91,126.9,2.7]
[1764640728001,3.33230385,126.92,126.89,0.05377683]
[1764640728199,6.31506709,126.91,126.89,0.05377683]
[1764640728401,3.28,126.91,126.89,0.05377683]
[1764640729408,3.28,126.91,126.89,7.14607683]
[1764640730206,3.28,126.91,126.89,9.84607683]
[1764640730395,3.33230385,126.92,126.9,9.7917]
[1764640730600,0.05230385,126.92,126.91,2.7]
[1764640735011,0.05230385,126.92,126.9,9.7917]
[1764640735012,3.33230385,126.92,126.9,9.7917]
[1764640737611,3.33230385,126.92,126.91,2.7]
[1764640737806,0.05230385,126.92,126.91,2.7]
[1764640740018,3.33230385,126.92,126.89,7.14607683]
[1764640740514,3.33230385,126.92,126.89,9.84607683]
[1764640741818,3.33230385,126.92,126.9,2.7]
[1764640742511,3.33230385,126.92,126.89,7.14607683]
[1764640742712,3.33230385,126.92,126.89,9.84607683]
[1764640747416,0.05230385,126.92,126.91,2.7]
[1764640748822,3.35230385,126.92,126.9,9.7917]
[1764640749620,3.35230385,126.92,126.91,2.7]
[1764640750216,0.05230385,126.92,126.91,2.7]
[1764640752120,3.35230385,126.92,126.91,2.7]
[1764640754019,0.05230385,126.92,126.91,2.7]
[1764640758224,3.3,126.96,126.93,7.09]
[1764640758430,3.3,126.96,126.94,2.7]
[1764640759132,3.3,126.96,126.93,2.7]
[1764640759334,3.35222398,126.96,126.93,2.7550441]
[1764640759726,3.35222398,126.96,126.94,2.7]
[1764640760437,6.31046606,126.95,126.93,9.8451441]
[1764640760628,3.3,126.95,126.93,9.8451441]
[1764640762630,3.3,126.95,126.93,7.1451441]
[1764640762833,3.3,126.95,126.93,9.8451441]
[1764640764439,3.3,126.95,126.93,2.7550441]
[1764640765037,3.3,126.95,126.93,0.0550441]
[1764640765834,3.35222398,126.96,126.94,2.7]
[1764640766033,3.01327632,126.95,126.94,2.7]
[1764640766632,6.31327632,126.95,126.94,2.7]
[1764640767530,0.05222398,126.96,126.94,2.7]
[1764640767731,3.35222398,126.96,126.94,2.7]
[1764640768440,3.01666853,126.95,126.94,2.7]
[1764640769843,0.05222398,126.96,126.95,2.7]
[1764640770140,3.07079183,126.96,126.95,2.7]
[1764640770737,3.07182945,126.96,126.95,2.7]
[1764640771136,8.97629419,126.96,126.95,2.7]
[1764640771334,3.07182945,126.96,126.95,2.7]
[1764640771943,0.05222398,126.96,126.95,72.17579231]
[1764640772142,3.14,127.01,126.97,2.7]
[1764640772337,8.92378201,127.0,126.97,2.7]
[1764640772541,8.92489419,126.99,126.97,2.7]
[1764640772740,3.14,127.01,126.98,2.7]
[1764640772938,3.02205222,127.0,126.98,2.7]
[1764640773141,0.0588594,127.0,126.98,2.76069571]
[1764640773446,0.0588594,127.0,126.99,11.88259231]
[1764640779751,3.2788594,127.0,126.99,2.09579231]
[1764640779947,3.2788594,127.0,126.98,0.06069571]
[1764640782647,5.37465171,127.0,126.98,0.06069571]
[1764640782848,3.22,126.99,126.98,0.06069571]
[1764640783044,6.21224363,126.99,126.98,0.06069571]
[1764640784152,3.22,126.98,126.93,11.88569231]
[1764640784546,3.22,126.98,126.94,2.7]
[1764640785147,0.05509781,126.97,126.95,0.0595579]
[1764640785348,3.27509781,126.97,126.95,0.0595579]
[1764640790775,10.36329781,126.97,126.95,0.0595579]
[1764640790975,3.22,126.96,126.95,0.0595579]
[1764640792380,3.22,126.95,126.91,70.06]
[1764640793179,3.22,126.95,126.92,2.76]
[1764640793380,3.27596227,126.95,126.92,2.81854142]
[1764640797266,3.27596227,126.95,126.92,9.90924142]
[1764640798077,3.27596227,126.95,126.93,2.76]
[1764640798279,0.05596227,126.95,126.94,2.76]
[1764640800384,3.27596227,126.95,126.93,7.0902]
[1764640800680,3.27596227,126.95,126.92,2.81854142]
[1764640801582,0.05596227,126.95,126.94,2.76]
[1764640801975,3.22,127.0,126.95,2.76]
[1764640802282,6.21469535,126.99,126.97,2.76]
[1764640802482,3.22,126.99,126.97,2.76]